Body URI,Body Name,Date,Transaction Number (URN),Invoice Number,Amount,Supplier Name,Supplier ID,Expense Area,Expense Type,Expense Code,BVACOP,Proclass,Extended Description
,Council of the Isles of Scilly,02/06/2014,008-03-0305917,N/A,500.00,S&E COOK,N/A,HOUSING STOCK MANAGEMENT,Rents: Rental Payments,12001,Housing Revenue Account,,
,Council of the Isles of Scilly,02/06/2014,008-03-0305918,N/A,678.00,INVESTEC ASSET FIN,N/A,DEMOCRATIC REPRESENTATION & MANAGEMENT,Equipment: General,30101,Central Services,,
,Council of the Isles of Scilly,03/06/2014,008-03-0305921,N/A,"6,705.80",REDACTED PERSONAL INFORMATION,REDACTED PERSONAL INFORMATION,ADULTS UNDER 65 LD - SUPPORTED & OTHER ACCOMMODATION,Private Contractors & Other Agencies: Residential Care,42005,Adult & Community Services,,
,Council of the Isles of Scilly,04/06/2014,008-03-0305925,N/A,"17,860.10",D & C POLICE FUND,N/A,PRECEPTS & LEVIES,Devon & Cornwall Police,40203,Other Operating Income & Expenditure,,
,Council of the Isles of Scilly,10/06/2014,008-03-0305952,N/A,314.40,FRANCOTYP T/A TEL,N/A,DEMOCRATIC REPRESENTATION & MANAGEMENT,Postages: Stamps/Franking,33001,Central Services,,
,Council of the Isles of Scilly,10/06/2014,008-03-0305953,N/A,"2,106.48",BOOKER LTD,N/A,OLDER PEOPLE OVER 65 - PARK HOUSE RESIDENTIAL CARE,Catering: Other provision,31003,Adult & Community Services,,
,Council of the Isles of Scilly,16/06/2014,008-03-0306087,N/A,900.00,J WILLIAMS,N/A,HOMELESSNESS,Rents: Rental Payments,12001,Housing Services,,
,Council of the Isles of Scilly,18/06/2014,008-03-0306100,N/A,314.40,FRANCOTYP T/A TEL,N/A,DEMOCRATIC REPRESENTATION & MANAGEMENT,Postages: Stamps/Franking,33001,Central Services,,
,Council of the Isles of Scilly,18/06/2014,008-03-0306101,N/A,"8,378.40",SAFESKYS LTD,N/A,AIRPORT - GENERAL,Private Contractors & Other Agencies: Professional Services,42001,Other Operating Income & Expenditure,,
,Council of the Isles of Scilly,30/06/2014,008-03-0306127,N/A,54.02,BRITISH GAS,N/A,PUBLIC CONVENIENCES,Energy Costs: Electricity,11001,PUBLIC CONVENIENCES,,
,Council of the Isles of Scilly,30/06/2014,008-03-0306127,N/A,26.13,BRITISH GAS,N/A,IOS WATER SERVICES,Energy Costs: Electricity,11001,IOS WATER SERVICES,,
,Council of the Isles of Scilly,30/06/2014,008-03-0306127,N/A,152.44,BRITISH GAS,N/A,RESPONSIVE R&M,Energy Costs: Electricity,11001,RESPONSIVE R&M,,
,Council of the Isles of Scilly,30/06/2014,008-03-0306127,N/A,161.76,BRITISH GAS,N/A,PUBLIC CONVENIENCES,Energy Costs: Electricity,11001,PUBLIC CONVENIENCES,,
,Council of the Isles of Scilly,30/06/2014,008-03-0306127,N/A,38.89,BRITISH GAS,N/A,PUBLIC CONVENIENCES,Energy Costs: Electricity,11001,PUBLIC CONVENIENCES,,
,Council of the Isles of Scilly,30/06/2014,008-03-0306127,N/A,149.63,BRITISH GAS,N/A,PUBLIC CONVENIENCES,Energy Costs: Electricity,11001,PUBLIC CONVENIENCES,,
,Council of the Isles of Scilly,30/06/2014,008-03-0306127,N/A,990.26,BRITISH GAS,N/A,RESPONSIVE R&M,Energy Costs: Electricity,11001,RESPONSIVE R&M,,
,Council of the Isles of Scilly,30/06/2014,008-03-0306127,N/A,35.82,BRITISH GAS,N/A,RESPONSIVE R&M,Energy Costs: Electricity,11001,RESPONSIVE R&M,,
,Council of the Isles of Scilly,30/06/2014,008-03-0306127,N/A,27.19,BRITISH GAS,N/A,RESPONSIVE R&M,Energy Costs: Electricity,11001,RESPONSIVE R&M,,
,Council of the Isles of Scilly,30/06/2014,008-03-0306127,N/A,17.09,BRITISH GAS,N/A,OLDER PEOPLE OVER 65 - PARK HOUSE RESIDENTIAL CARE,Energy Costs: Electricity,11001,OLDER PEOPLE OVER 65 - PARK HOUSE RESIDENTIAL CARE,,
,Council of the Isles of Scilly,30/06/2014,008-03-0306127,N/A,53.39,BRITISH GAS,N/A,FIRE & RESCUE OPERATIONS,Energy Costs: Electricity,11001,FIRE & RESCUE OPERATIONS,,
,Council of the Isles of Scilly,30/06/2014,008-03-0306127,N/A,52.73,BRITISH GAS,N/A,FIRE & RESCUE OPERATIONS,Energy Costs: Electricity,11001,FIRE & RESCUE OPERATIONS,,
,Council of the Isles of Scilly,30/06/2014,008-03-0306127,N/A,31.97,BRITISH GAS,N/A,FIRE & RESCUE OPERATIONS,Energy Costs: Electricity,11001,FIRE & RESCUE OPERATIONS,,
,Council of the Isles of Scilly,30/06/2014,008-03-0306127,N/A,140.25,BRITISH GAS,N/A,IOS WATER SERVICES,Energy Costs: Electricity,11001,IOS WATER SERVICES,,
,Council of the Isles of Scilly,30/06/2014,008-03-0306127,N/A,302.31,BRITISH GAS,N/A,FIRE & RESCUE OPERATIONS,Energy Costs: Electricity,11001,FIRE & RESCUE OPERATIONS,,
,Council of the Isles of Scilly,30/06/2014,008-03-0306127,N/A,94.17,BRITISH GAS,N/A,CARN THOMAS EDUCATION BUILDING,Energy Costs: Electricity,11001,CARN THOMAS EDUCATION BUILDING,,
,Council of the Isles of Scilly,30/06/2014,008-03-0306127,N/A,455.94,BRITISH GAS,N/A,CHILDRENS SERVICES - COMMISSIONING & SOCIAL WORK,Energy Costs: Electricity,11001,CHILDRENS SERVICES - COMMISSIONING & SOCIAL WORK,,
,Council of the Isles of Scilly,30/06/2014,008-03-0306127,N/A,53.27,BRITISH GAS,N/A,IOS SEWERAGE SERVICES,Energy Costs: Electricity,11001,IOS SEWERAGE SERVICES,,
,Council of the Isles of Scilly,30/06/2014,008-03-0306127,N/A,13.97,BRITISH GAS,N/A,IOS WATER SERVICES,Energy Costs: Electricity,11001,IOS WATER SERVICES,,
,Council of the Isles of Scilly,30/06/2014,008-03-0306127,N/A,74.25,BRITISH GAS,N/A,IOS WATER SERVICES - BRYHER,Energy Costs: Electricity,11001,IOS WATER SERVICES - BRYHER,,
,Council of the Isles of Scilly,30/06/2014,008-03-0306127,N/A,30.48,BRITISH GAS,N/A,IOS WATER SERVICES,Energy Costs: Electricity,11001,IOS WATER SERVICES,,
,Council of the Isles of Scilly,30/06/2014,008-03-0306127,N/A,30.69,BRITISH GAS,N/A,IOS WATER SERVICES,Energy Costs: Electricity,11001,IOS WATER SERVICES,,
,Council of the Isles of Scilly,30/06/2014,008-03-0306127,N/A,78.72,BRITISH GAS,N/A,RESPONSIVE R&M,Energy Costs: Electricity,11001,RESPONSIVE R&M,,
,Council of the Isles of Scilly,30/06/2014,008-03-0306127,N/A,74.03,BRITISH GAS,N/A,IOS SEWERAGE SERVICES,Energy Costs: Electricity,11001,IOS SEWERAGE SERVICES,,
,Council of the Isles of Scilly,30/06/2014,008-03-0306127,N/A,426.78,BRITISH GAS,N/A,IOS SEWERAGE SERVICES,Energy Costs: Electricity,11001,IOS SEWERAGE SERVICES,,
,Council of the Isles of Scilly,30/06/2014,008-03-0306127,N/A,14.82,BRITISH GAS,N/A,OFFICE - PORTHMELLON ADMINISTRATIVE BUILDINGS,Energy Costs: Electricity,11001,OFFICE - PORTHMELLON ADMINISTRATIVE BUILDINGS,,
,Council of the Isles of Scilly,30/06/2014,008-03-0306127,N/A,200.04,BRITISH GAS,N/A,WASTE DISPOSAL - INCINERATOR,Energy Costs: Electricity,11001,WASTE DISPOSAL - INCINERATOR,,
,Council of the Isles of Scilly,30/06/2014,008-03-0306127,N/A,359.53,BRITISH GAS,N/A,IOS WATER SERVICES,Energy Costs: Electricity,11001,IOS WATER SERVICES,,
,Council of the Isles of Scilly,30/06/2014,008-03-0306127,N/A,26.11,BRITISH GAS,N/A,AIRPORT - GENERAL,Energy Costs: Electricity,11001,AIRPORT - GENERAL,,
,Council of the Isles of Scilly,30/06/2014,008-03-0306127,N/A,471.25,BRITISH GAS,N/A,IOS SEWERAGE SERVICES,Energy Costs: Electricity,11001,IOS SEWERAGE SERVICES,,
,Council of the Isles of Scilly,30/06/2014,008-03-0306127,N/A,27.83,BRITISH GAS,N/A,OFFICE - WESLEYAN CHAPEL,Energy Costs: Electricity,11001,OFFICE - WESLEYAN CHAPEL,,
,Council of the Isles of Scilly,30/06/2014,008-03-0306127,N/A,222.41,BRITISH GAS,N/A,FIRE & RESCUE OPERATIONS,Energy Costs: Electricity,11001,FIRE & RESCUE OPERATIONS,,
,Council of the Isles of Scilly,30/06/2014,008-03-0306127,N/A,45.49,BRITISH GAS,N/A,MOORWELL DEPOT,Energy Costs: Electricity,11001,MOORWELL DEPOT,,
,Council of the Isles of Scilly,30/06/2014,008-03-0306127,N/A,101.72,BRITISH GAS,N/A,MOORWELL DEPOT,Energy Costs: Electricity,11001,MOORWELL DEPOT,,
,Council of the Isles of Scilly,30/06/2014,008-03-0306127,N/A,32.71,BRITISH GAS,N/A,IOS SEWERAGE SERVICES,Energy Costs: Electricity,11001,IOS SEWERAGE SERVICES,,
,Council of the Isles of Scilly,30/06/2014,008-03-0306127,N/A,17.70,BRITISH GAS,N/A,AIRPORT - GENERAL,Energy Costs: Electricity,11001,AIRPORT - GENERAL,,
,Council of the Isles of Scilly,30/06/2014,008-03-0306127,N/A,26.03,BRITISH GAS,N/A,SWIMMING POOL,Energy Costs: Electricity,11001,SWIMMING POOL,,
,Council of the Isles of Scilly,30/06/2014,008-03-0306127,N/A,714.33,BRITISH GAS,N/A,IOS SEWERAGE SERVICES,Energy Costs: Electricity,11001,IOS SEWERAGE SERVICES,,
,Council of the Isles of Scilly,30/06/2014,008-03-0306127,N/A,107.63,BRITISH GAS,N/A,LIBRARY SERVICE,Energy Costs: Electricity,11001,LIBRARY SERVICE,,
,Council of the Isles of Scilly,30/06/2014,008-03-0306127,N/A,33.79,BRITISH GAS,N/A,OPEN SPACES AND BEACHES,Energy Costs: Electricity,11001,OPEN SPACES AND BEACHES,,
,Council of the Isles of Scilly,30/06/2014,008-03-0306127,N/A,185.48,BRITISH GAS,N/A,BUZZA BUS (DIAL A RIDE SCHEME),Energy Costs: Electricity,11001,BUZZA BUS (DIAL A RIDE SCHEME),,
,Council of the Isles of Scilly,30/06/2014,008-03-0306127,N/A,9.19,BRITISH GAS,N/A,IOS SEWERAGE SERVICES,Energy Costs: Electricity,11001,IOS SEWERAGE SERVICES,,
,Council of the Isles of Scilly,30/06/2014,008-03-0306127,N/A,67.22,BRITISH GAS,N/A,CARN GWAVAL HEALTH & WELLBEING CENTRE,Energy Costs: Electricity,11001,CARN GWAVAL HEALTH & WELLBEING CENTRE,,
,Council of the Isles of Scilly,30/06/2014,008-03-0306127,N/A,353.17,BRITISH GAS,N/A,CARN THOMAS SECONDARY BUILDING,Energy Costs: Electricity,11001,CARN THOMAS SECONDARY BUILDING,,
,Council of the Isles of Scilly,30/06/2014,008-03-0306127,N/A,6.26,BRITISH GAS,N/A,RESPONSIVE R&M,Energy Costs: Electricity,11001,RESPONSIVE R&M,,
,Council of the Isles of Scilly,30/06/2014,008-03-0306127,N/A,19.19,BRITISH GAS,N/A,RESPONSIVE R&M,Energy Costs: Electricity,11001,RESPONSIVE R&M,,
,Council of the Isles of Scilly,23/06/2014,008-03-0306132,N/A,795.00,RECEIVER GENERAL,N/A,INTERNAL SUPPORT SERVICES - MISCELLANEOUS,Rents: Rental Payments,12001,Central Services,,
,Council of the Isles of Scilly,24/06/2014,008-03-0306145,N/A,381.90,CAA,N/A,AIRPORT - GENERAL,Government Departments: Other,40301,Other Operating Income & Expenditure,,
,Council of the Isles of Scilly,24/06/2014,008-03-0306147,N/A,679.80,CAA,N/A,AIRPORT - GENERAL,Government Departments: Other,40301,Other Operating Income & Expenditure,,
,Council of the Isles of Scilly,24/06/2014,008-03-0306148,N/A,306.11,BOOKER LTD,N/A,SPORTS HALL,Catering: Other provision,31003,Cultural Services,,
,Council of the Isles of Scilly,24/06/2014,008-03-0306148,N/A,306.10,BOOKER LTD,N/A,SWIMMING POOL,Catering: Other provision,31003,Cultural Services,,
,Council of the Isles of Scilly,30/06/2014,008-03-0306243,N/A,"2,025.00",AGE UK,N/A,BUZZA BUS (DIAL A RIDE SCHEME),Private Contractors & Other Agencies: Professional Services,42001,"Highways, Roads & Transport",,
,Council of the Isles of Scilly,30/06/2014,008-03-0306245,N/A,314.40,FRANCOTYP T/A TEL,N/A,DEMOCRATIC REPRESENTATION & MANAGEMENT,Postages: Stamps/Franking,33001,Central Services,,
,Council of the Isles of Scilly,20/06/2014,018-02-0305710,N/A,"1,122.00",MR R ASTEN,02754,CARN THOMAS CHILDREN'S BASE,Repairs and Maintenance,10302,Education,,
,Council of the Isles of Scilly,23/06/2014,018-02-0305782,N/A,"1,050.00",ST MARTIN'S BOAT SERVICES,00906,SPECIAL EDUCATIONAL SUPPORT,Boat Travel,23004,Education,,
,Council of the Isles of Scilly,30/06/2014,018-02-0306004,N/A,"1,487.30",SOUTH WEST WATER LTD,00003566,IOS WATER SERVICES,Testing Fees,37105,Other Operating Income & Expenditure,,
,Council of the Isles of Scilly,09/06/2014,018-02-0304836,N/A,821.44,SOUTH WEST WATER LTD,00003566,IOS WATER SERVICES - BRYHER,Professional Services,42001,Other Operating Income & Expenditure,,
,Council of the Isles of Scilly,16/06/2014,008-02-0305165,N/A,504.00,MR A GILBERT,00003608,RESPONSIVE R&M,External Contractors,10101,Housing Revenue Account,,
,Council of the Isles of Scilly,20/06/2014,018-02-0305708,N/A,"4,450.00",MR A GILBERT,00003608,MUNDESLEY R&M REFURBISHMENT,Repairs and Maintenance,10302,Education,,
,Council of the Isles of Scilly,20/06/2014,018-02-0305709,N/A,"2,266.55",MR A GILBERT,00003608,CARN THOMAS CHILDREN'S BASE,Repairs and Maintenance,10302,Education,,
,Council of the Isles of Scilly,09/06/2014,018-02-0304837,N/A,952.00,OIL & WATER SUPPLIES LTD,00003640,IOS WATER SERVICES,General,30101,Other Operating Income & Expenditure,,
,Council of the Isles of Scilly,09/06/2014,018-02-0304837,N/A,"1,891.60",OIL & WATER SUPPLIES LTD,00003640,IOS WATER SERVICES,General,30101,Other Operating Income & Expenditure,,
,Council of the Isles of Scilly,09/06/2014,018-02-0304837,N/A,"7,150.00",OIL & WATER SUPPLIES LTD,00003640,IOS WATER SERVICES - DESALINATION,General,30101,Other Operating Income & Expenditure,,
,Council of the Isles of Scilly,30/06/2014,018-02-0306006,N/A,"1,257.00",WESTCO BILANCIAI LTD,00003702,WASTE STRATEGY MANAGEMENT,General,30101,Environmental Services,,
,Council of the Isles of Scilly,30/06/2014,018-02-0306007,N/A,"3,365.00",WESTCO BILANCIAI LTD,00003702,WASTE STRATEGY MANAGEMENT,General,30101,Environmental Services,,
,Council of the Isles of Scilly,30/06/2014,018-02-0306008,N/A,594.00,WESTCO BILANCIAI LTD,00003702,WASTE STRATEGY MANAGEMENT,General,30101,Environmental Services,,
,Council of the Isles of Scilly,09/06/2014,018-02-0304839,N/A,"1,425.20",MISS KATIE  PLAYLE,00003723,Pre-school & Primary - support for 3 & 4 year olds,Other,37106,Education,,
,Council of the Isles of Scilly,09/06/2014,018-02-0304838,N/A,783.86,MISS KATIE  PLAYLE,00003723,Pre-school & Primary - 2 year olds,Other,37106,Education,,
,Council of the Isles of Scilly,23/06/2014,018-02-0305724,N/A,157.50,WESTERN MAINTENANCE,00003896,PLAY & HOLIDAY ACTIVITIES,Contractors,16001,Cultural Services,,
,Council of the Isles of Scilly,02/06/2014,018-02-0304111,N/A,480.00,WESTERN MAINTENANCE,00003896,Capital,Professional Services,42001,Capital,,
,Council of the Isles of Scilly,30/06/2014,018-02-0306011,N/A,378.80,ENGELBERT STRAUSS LTD,00003990,WASTE DISPOSAL - INCINERATOR,Other,30103,Environmental Services,,
,Council of the Isles of Scilly,30/06/2014,018-02-0306010,N/A,61.97,ENGELBERT STRAUSS LTD,00003990,DIRECT LABOUR FORCE,Other,30103,Other Operating Income & Expenditure,,
,Council of the Isles of Scilly,30/06/2014,018-02-0306011,N/A,378.80,ENGELBERT STRAUSS LTD,00003990,DIRECT LABOUR FORCE,Other,30103,Other Operating Income & Expenditure,,
,Council of the Isles of Scilly,30/06/2014,018-02-0306011,N/A,378.80,ENGELBERT STRAUSS LTD,00003990,IOS WATER SERVICES,Other,30103,Other Operating Income & Expenditure,,
,Council of the Isles of Scilly,30/06/2014,018-02-0306012,N/A,134.92,ENGELBERT STRAUSS LTD,00003990,DIRECT LABOUR FORCE,Other,37106,Other Operating Income & Expenditure,,
,Council of the Isles of Scilly,30/06/2014,018-02-0306016,N/A,612.50,E J AND A C STEWART,00004170,PUBLIC CONVENIENCES,Cleaning Costs,15002,Environmental Services,,
,Council of the Isles of Scilly,30/06/2014,018-02-0306018,N/A,780.00,ROSENFLEX UK LTD,00004330,WASTE DISPOSAL - RECYCLING,Other materials,30303,Environmental Services,,
,Council of the Isles of Scilly,30/06/2014,018-02-0306019,N/A,338.13,SJ ANDREW AND SON,00004386,IOS WATER SERVICES,General,30101,Other Operating Income & Expenditure,,
,Council of the Isles of Scilly,30/06/2014,018-02-0306020,N/A,605.66,SJ ANDREW AND SON,00004386,IOS WATER SERVICES,General,30101,Other Operating Income & Expenditure,,
,Council of the Isles of Scilly,09/06/2014,018-02-0304843,N/A,"1,295.00",ASHFORDS,00004450,CORPORATE MANAGEMENT - OTHER,Legal Fees,37124,Central Services,,
,Council of the Isles of Scilly,16/06/2014,008-02-0305207,N/A,"6,425.60",ASHFORDS,00004450,Capital,Legal Fees,37124,Capital,,
,Council of the Isles of Scilly,02/06/2014,018-02-0304114,N/A,945.00,THIRD SECTOR SYSTEMS,00004474,INTERNAL ICT SERVICES,Fees and Advice,33203,Central Services,,
,Council of the Isles of Scilly,02/06/2014,018-02-0304113,N/A,623.81,THIRD SECTOR SYSTEMS,00004474,INTERNAL ICT SERVICES,Software Licences,33205,Central Services,,
,Council of the Isles of Scilly,09/06/2014,018-02-0304844,N/A,"1,300.00",SMITH & OUZMAN LTD,00004550,OTHER ELECTIONS,Other printing,32004,Central Services,,
,Council of the Isles of Scilly,09/06/2014,018-02-0304845,N/A,"8,912.00",NORTH SOMERSET COUNCIL,00004669,SCHOOL DEVELOPMENT,Other,40202,Education,,
,Council of the Isles of Scilly,09/06/2014,018-02-0304846,N/A,"1,800.00",NORTH SOMERSET COUNCIL,00004669,SCHOOL DEVELOPMENT,Other,40202,Education,,
,Council of the Isles of Scilly,16/06/2014,008-02-0305212,N/A,"8,775.00",GRANT THORNTON,00004673,CORPORATE MANAGEMENT - EXTERNAL AUDIT,Audit Fees,37101,Central Services,,
,Council of the Isles of Scilly,09/06/2014,018-02-0304848,N/A,216.09,BRITISH GAS BUSINESS,00004919,PORTHCRESSA SHELTER & TOILETS,Electricity,11001,Cultural Services,,
,Council of the Isles of Scilly,09/06/2014,011-02-0304999,N/A,-216.09,BRITISH GAS BUSINESS,00004919,PORTHCRESSA SHELTER & TOILETS,Electricity,11001,Cultural Services,,
,Council of the Isles of Scilly,11/06/2014,018-02-0305009,N/A,216.09,BRITISH GAS BUSINESS,00004919,PORTHCRESSA SHELTER & TOILETS,Electricity,11001,Cultural Services,,
,Council of the Isles of Scilly,16/06/2014,008-02-0305215,N/A,319.44,BRITISH GAS BUSINESS,00004919,PORTHCRESSA SHELTER & TOILETS,Electricity,11001,Cultural Services,,
,Council of the Isles of Scilly,09/06/2014,018-02-0304848,N/A,29.47,BRITISH GAS BUSINESS,00004919,TOURISM,Electricity,11001,Cultural Services,,
,Council of the Isles of Scilly,09/06/2014,011-02-0304999,N/A,-29.47,BRITISH GAS BUSINESS,00004919,TOURISM,Electricity,11001,Cultural Services,,
,Council of the Isles of Scilly,11/06/2014,018-02-0305009,N/A,29.47,BRITISH GAS BUSINESS,00004919,TOURISM,Electricity,11001,Cultural Services,,
,Council of the Isles of Scilly,16/06/2014,008-02-0305215,N/A,43.56,BRITISH GAS BUSINESS,00004919,TOURISM,Electricity,11001,Cultural Services,,
,Council of the Isles of Scilly,16/06/2014,008-02-0305217,N/A,375.00,JNC SAFETY SERVICES LIMITED,00005150,Capital,Professional Services,42001,Capital,,
,Council of the Isles of Scilly,16/06/2014,008-02-0305217,N/A,"1,000.00",JNC SAFETY SERVICES LIMITED,00005150,Capital,Professional Services,42001,Capital,,
,Council of the Isles of Scilly,02/06/2014,018-02-0304117,N/A,996.00,PENINSULA COMMUNITY HEALTH CIC,00005499,OLDER PEOPLE OVER 65 - MEALS,Meals on Wheels,31002,Adult & Community Services,,
,Council of the Isles of Scilly,02/06/2014,018-02-0304118,N/A,"1,100.00",PENINSULA COMMUNITY HEALTH CIC,00005499,OLDER PEOPLE OVER 65 - MEALS,Meals on Wheels,31002,Adult & Community Services,,
,Council of the Isles of Scilly,02/06/2014,018-02-0304120,N/A,"9,500.00",SWEETT (UK) LTD,00005542,Capital,Professional Services,42001,Capital,,
,Council of the Isles of Scilly,02/06/2014,018-02-0304121,N/A,"5,000.00",SWEETT (UK) LTD,00005542,Capital,Professional Services,42001,Capital,,
,Council of the Isles of Scilly,09/06/2014,018-02-0304852,N/A,"4,800.00",SCILLY HOLS LTD,00005573,HOMELESSNESS,Rental Payments,12001,Housing Services,,
,Council of the Isles of Scilly,09/06/2014,018-02-0304827,N/A,34.00,REDACTED PERSONAL INFORMATION,REDACTED PERSONAL INFORMATION,POST 16 OPPORTUNITIES,Accommodation Grants,50104,Education,,
,Council of the Isles of Scilly,09/06/2014,018-02-0304827,N/A,722.00,REDACTED PERSONAL INFORMATION,REDACTED PERSONAL INFORMATION,POST 16 OPPORTUNITIES,Accommodation Grants,50104,Education,,
,Council of the Isles of Scilly,09/06/2014,018-02-0304827,N/A,34.00,REDACTED PERSONAL INFORMATION,REDACTED PERSONAL INFORMATION,POST 16 OPPORTUNITIES,Accommodation Grants,50104,Education,,
,Council of the Isles of Scilly,09/06/2014,018-02-0304827,N/A,73.00,REDACTED PERSONAL INFORMATION,REDACTED PERSONAL INFORMATION,POST 16 OPPORTUNITIES,Travel Grants,50106,Education,,
,Council of the Isles of Scilly,16/06/2014,008-02-0305221,N/A,"2,550.00",MANDALORIAN SECURITY SERVICES LTD,00005685,INTERNAL ICT SERVICES,Fees and Advice,33203,Central Services,,
,Council of the Isles of Scilly,16/06/2014,008-02-0305221,N/A,"2,550.00",MANDALORIAN SECURITY SERVICES LTD,00005685,STRATEGIC MANAGEMENT OF CHILDRENS SERVICES,Fees and Advice,33203,Education,,
,Council of the Isles of Scilly,12/06/2014,018-02-0305111,N/A,"2,497.00",D.J EVANS,00005687,SWIMMING POOL,Professional Services,42001,Cultural Services,,
,Council of the Isles of Scilly,09/06/2014,018-02-0304853,N/A,295.80,STRIDE TREGLOWN MANAGEMENT,00005829,Capital,Other,42003,Capital,,
,Council of the Isles of Scilly,09/06/2014,018-02-0304854,N/A,"1,000.00",STRIDE TREGLOWN MANAGEMENT,00005829,Capital,Other,42003,Capital,,
,Council of the Isles of Scilly,16/06/2014,008-02-0305224,N/A,935.97,SIA SECURITY SERVICES SOUTH WEST LTD,00005887,ADULT & COMMUNITY LEARNING - SFA,Other,37106,Education,,
,Council of the Isles of Scilly,09/06/2014,018-02-0304860,N/A,"2,900.00",CARITAS RECRUITMENT LTD,00005989,CHILDRENS SERVICES - COMMISSIONING & SOCIAL WORK,Recruitment agency fees,37104,Childrens Social Care,,
,Council of the Isles of Scilly,09/06/2014,018-02-0304861,N/A,"4,500.00",CENTRAL COMPUTER MANAGEMENT LTD,00006027,INTERNAL SUPPORT SERVICES - HUMAN RESOURCES SERVICES,Payroll Services,37126,Central Services,,
,Council of the Isles of Scilly,09/06/2014,018-02-0304861,N/A,"1,300.00",CENTRAL COMPUTER MANAGEMENT LTD,00006027,INTERNAL SUPPORT SERVICES - HUMAN RESOURCES SERVICES,Payroll Services,37126,Central Services,,
,Council of the Isles of Scilly,09/06/2014,018-02-0304861,N/A,35.00,CENTRAL COMPUTER MANAGEMENT LTD,00006027,INTERNAL SUPPORT SERVICES - HUMAN RESOURCES SERVICES,Payroll Services,37126,Central Services,,
,Council of the Isles of Scilly,16/06/2014,008-02-0305235,N/A,30.11,NEWCROSS HEALTHCARE SOLUTIONS,00006060,OLDER PEOPLE OVER 65 - PARK HOUSE RESIDENTIAL CARE,Maintenance,30102,Adult & Community Services,,
,Council of the Isles of Scilly,16/06/2014,008-02-0305237,N/A,33.87,NEWCROSS HEALTHCARE SOLUTIONS,00006060,OLDER PEOPLE OVER 65 - PARK HOUSE RESIDENTIAL CARE,Maintenance,30102,Adult & Community Services,,
,Council of the Isles of Scilly,16/06/2014,008-02-0305235,N/A,413.63,NEWCROSS HEALTHCARE SOLUTIONS,00006060,OLDER PEOPLE OVER 65 - PARK HOUSE RESIDENTIAL CARE,Professional Services,42001,Adult & Community Services,,
,Council of the Isles of Scilly,16/06/2014,008-02-0305237,N/A,462.97,NEWCROSS HEALTHCARE SOLUTIONS,00006060,OLDER PEOPLE OVER 65 - PARK HOUSE RESIDENTIAL CARE,Professional Services,42001,Adult & Community Services,,
,Council of the Isles of Scilly,02/06/2014,018-02-0304124,N/A,690.43,NEWCROSS HEALTHCARE SOLUTIONS,00006060,OLDER PEOPLE OVER 65 - PARK HOUSE RESIDENTIAL CARE,Agency Staff,42002,Adult & Community Services,,
,Council of the Isles of Scilly,16/06/2014,008-02-0305238,N/A,600.00,BULLO LTD,00006078,Capital,Boat Transport,25002,Capital,,
,Council of the Isles of Scilly,16/06/2014,008-02-0305241,N/A,"4,660.00",JAMES HOLE BUILDING CONTRACTOR,00006135,COASTAL PROTECTON - PROJECTS,Professional Services,42001,Environmental Services,,
,Council of the Isles of Scilly,16/06/2014,008-02-0305241,N/A,"6,125.00",JAMES HOLE BUILDING CONTRACTOR,00006135,COASTAL PROTECTON - PROJECTS,Professional Services,42001,Environmental Services,,
,Council of the Isles of Scilly,09/06/2014,018-02-0304862,N/A,"2,660.00",PLAN ALPHA SYSTEMS,00006141,INTERNAL SUPPORT SERVICES - MISCELLANEOUS,Fees and Advice,33203,Central Services,,
,Council of the Isles of Scilly,03/06/2014,018-02-0304185,N/A,"4,745.20",ASH FUTURES LTD,00006148,ECONOMIC DEVELOPMENT,Professional Services,42001,Planning Services,,
,Council of the Isles of Scilly,16/06/2014,008-02-0305243,N/A,"2,310.00",ASH FUTURES LTD,00006148,ECONOMIC DEVELOPMENT,Professional Services,42001,Planning Services,,
,Council of the Isles of Scilly,03/06/2014,018-02-0304186,N/A,"434,625.00",LAGAN CONSTRUCTION,00006164,Capital,Professional Services,42001,Capital,,
,Council of the Isles of Scilly,16/06/2014,008-02-0305244,N/A,"3,296.80",WYATT-JONES ASSOCIATES,00006196,CORPORATE MANAGEMENT - OTHER,Recruitment agency fees,37104,Central Services,,
,Council of the Isles of Scilly,23/06/2014,018-02-0305745,N/A,"1,875.00",TIMOTHY JAMES CONSULTING LTD,00006236,INTERNAL SUPPORT SERVICES - MISCELLANEOUS,Recruitment agency fees,37104,Central Services,,
,Council of the Isles of Scilly,16/06/2014,008-02-0305251,N/A,"1,875.00",TIMOTHY JAMES CONSULTING LTD,00006236,INTERNAL SUPPORT SERVICES - MISCELLANEOUS,Recruitment agency fees,37104,Central Services,,
,Council of the Isles of Scilly,09/06/2014,018-02-0304871,N/A,"1,500.00",TIMOTHY JAMES CONSULTING LTD,00006236,INTERNAL SUPPORT SERVICES - MISCELLANEOUS,Recruitment agency fees,37104,Central Services,,
,Council of the Isles of Scilly,03/06/2014,018-02-0304188,N/A,"1,875.00",TIMOTHY JAMES CONSULTING LTD,00006236,INTERNAL SUPPORT SERVICES - MISCELLANEOUS,Recruitment agency fees,37104,Central Services,,
,Council of the Isles of Scilly,03/06/2014,018-02-0304190,N/A,"1,768.00",IBM UNITED KINGDOM LTD,00006245,INSHORE FISHERIES & CONSERVATION AUTHORITIES,Software Licences,33205,Environmental Services,,
,Council of the Isles of Scilly,26/06/2014,018-02-0305935,N/A,745.00,JANE M C MCCARTHY,00006266,ADULT SOCIAL CARE STRATEGY,Non-Staff Training Courses,37116,Adult & Community Services,,
,Council of the Isles of Scilly,03/06/2014,018-02-0304192,N/A,236.00,BRYHER BOAT SERVICES,00019,IOS WATER SERVICES - BRYHER,Boat Travel,23004,Other Operating Income & Expenditure,,
,Council of the Isles of Scilly,03/06/2014,018-02-0304193,N/A,4.50,BRYHER BOAT SERVICES,00019,ADULT & COMMUNITY LEARNING - SFA,Boat Travel,23004,Education,,
,Council of the Isles of Scilly,03/06/2014,018-02-0304192,N/A,66.00,BRYHER BOAT SERVICES,00019,DEMOCRATIC REPRESENTATION & MANAGEMENT,Boat Travel,23004,Central Services,,
,Council of the Isles of Scilly,03/06/2014,018-02-0304192,N/A,42.00,BRYHER BOAT SERVICES,00019,CHILDREN LOOKED AFTER - ADOPTION SERVICES,Boat Travel,23004,Childrens Social Care,,
,Council of the Isles of Scilly,03/06/2014,018-02-0304192,N/A,"1,485.00",BRYHER BOAT SERVICES,00019,HOME TO SCHOOL TRANSPORT,Home to school transport - Primary,26001,Education,,
,Council of the Isles of Scilly,03/06/2014,018-02-0304192,N/A,168.00,BRYHER BOAT SERVICES,00019,HOME TO SCHOOL TRANSPORT,Home to school transport - Secondary,26002,Education,,
,Council of the Isles of Scilly,11/06/2014,008-02-0304909,N/A,130.00,BRYHER BOAT SERVICES,00019,OTHER ELECTIONS,Other printing,32004,Central Services,,
,Council of the Isles of Scilly,11/06/2014,008-02-0304911,N/A,0.30,CORNWALL  COUNCIL,00025,FIRE & RESCUE OPERATIONS,Protective Clothing,31102,Fire & rescue,,
,Council of the Isles of Scilly,16/06/2014,008-02-0305258,N/A,600.00,CORNWALL  COUNCIL,00025,FIRE & RESCUE OPERATIONS,Other audit fees,37102,Fire & rescue,,
,Council of the Isles of Scilly,16/06/2014,008-02-0305261,N/A,13.72,CORNWALL  COUNCIL,00025,FIRE & RESCUE OPERATIONS,Legal Fees,37124,Fire & rescue,,
,Council of the Isles of Scilly,16/06/2014,008-02-0305261,N/A,9.61,CORNWALL  COUNCIL,00025,CORPORATE MANAGEMENT - OTHER,Legal Fees,37124,Central Services,,
,Council of the Isles of Scilly,11/06/2014,008-02-0304912,N/A,"58,500.00",CORNWALL  COUNCIL,00025,PUBLIC HEALTH,Cornwall Council,40201,Public Health,,
,Council of the Isles of Scilly,11/06/2014,008-02-0304913,N/A,"4,800.00",CORNWALL  COUNCIL,00025,STRATEGIC MANAGEMENT OF CHILDRENS SERVICES,Cornwall Council,40201,Education,,
,Council of the Isles of Scilly,03/06/2014,018-02-0304194,N/A,"1,333.30",DAVID PARR ENGINEERING,00061,FIRE & RESCUE OPERATIONS,Other,42003,Fire & rescue,,
,Council of the Isles of Scilly,03/06/2014,018-02-0304196,N/A,"1,333.30",DAVID PARR ENGINEERING,00061,FIRE & RESCUE OPERATIONS,Other,42003,Fire & rescue,,
,Council of the Isles of Scilly,03/06/2014,018-02-0304197,N/A,"1,333.30",DAVID PARR ENGINEERING,00061,FIRE & RESCUE OPERATIONS,Other,42003,Fire & rescue,,
,Council of the Isles of Scilly,03/06/2014,018-02-0304194,N/A,666.70,DAVID PARR ENGINEERING,00061,AIRPORT - GENERAL,Other,42003,Other Operating Income & Expenditure,,
,Council of the Isles of Scilly,03/06/2014,018-02-0304196,N/A,666.70,DAVID PARR ENGINEERING,00061,AIRPORT - GENERAL,Other,42003,Other Operating Income & Expenditure,,
,Council of the Isles of Scilly,03/06/2014,018-02-0304197,N/A,666.70,DAVID PARR ENGINEERING,00061,AIRPORT - GENERAL,Other,42003,Other Operating Income & Expenditure,,
,Council of the Isles of Scilly,16/06/2014,008-02-0305268,N/A,391.50,TRESCO ESTATE,00079,CONCESSIONARY FARES,Boat Travel,23004,"Highways, Roads & Transport",,
,Council of the Isles of Scilly,11/06/2014,008-02-0304914,N/A,982.25,TRESCO ESTATE,00079,Pre-school & Primary - Access To Activities,Boat Travel,23004,Education,,
,Council of the Isles of Scilly,11/06/2014,008-02-0304916,N/A,863.83,VALUATION OFFICE AGENCY,00082,OTHER COUNCIL PROPERTY (GENERAL FUND),Valuation Fees,37115,Housing Services,,
,Council of the Isles of Scilly,11/06/2014,008-02-0304915,N/A,307.75,VALUATION OFFICE AGENCY,00082,HOUSING STOCK MANAGEMENT,Valuation Fees,37115,Housing Revenue Account,,
,Council of the Isles of Scilly,03/06/2014,018-02-0304199,N/A,271.11,ISLES OF SCILLY STEAMSHIP CO,00103,WASTE DISPOSAL - INCINERATOR,Boat Transport,25002,Environmental Services,,
,Council of the Isles of Scilly,03/06/2014,018-02-0304199,N/A,"1,928.19",ISLES OF SCILLY STEAMSHIP CO,00103,WASTE DISPOSAL - RECYCLING,Boat Transport,25002,Environmental Services,,
,Council of the Isles of Scilly,03/06/2014,018-02-0304199,N/A,257.33,ISLES OF SCILLY STEAMSHIP CO,00103,REFUSE COLLECTION - BRYHER,Boat Transport,25002,Environmental Services,,
,Council of the Isles of Scilly,03/06/2014,018-02-0304199,N/A,307.40,ISLES OF SCILLY STEAMSHIP CO,00103,REFUSE COLLECTION - ST AGNES,Boat Transport,25002,Environmental Services,,
,Council of the Isles of Scilly,03/06/2014,018-02-0304199,N/A,289.62,ISLES OF SCILLY STEAMSHIP CO,00103,REFUSE COLLECTION - ST MARTINS,Boat Transport,25002,Environmental Services,,
,Council of the Isles of Scilly,03/06/2014,018-02-0304199,N/A,87.46,ISLES OF SCILLY STEAMSHIP CO,00103,HIGHWAYS  - ROUTINE REPAIRS,Boat Transport,25002,"Highways, Roads & Transport",,
,Council of the Isles of Scilly,03/06/2014,018-02-0304199,N/A,442.08,ISLES OF SCILLY STEAMSHIP CO,00103,IOS WATER SERVICES,Boat Transport,25002,Other Operating Income & Expenditure,,
,Council of the Isles of Scilly,03/06/2014,018-02-0304199,N/A,14.90,ISLES OF SCILLY STEAMSHIP CO,00103,IOS WATER SERVICES - BRYHER,Boat Transport,25002,Other Operating Income & Expenditure,,
,Council of the Isles of Scilly,03/06/2014,018-02-0304199,N/A,13.40,ISLES OF SCILLY STEAMSHIP CO,00103,Vehicle 5W M136 ACV - Landrover Defender,Boat Transport,25002,Other Operating Income & Expenditure,,
,Council of the Isles of Scilly,03/06/2014,018-02-0304199,N/A,11.12,ISLES OF SCILLY STEAMSHIP CO,00103,Vehicle 26 X654 UFM - Leyland DAF Dustcart (Small),Boat Transport,25002,Other Operating Income & Expenditure,,
,Council of the Isles of Scilly,03/06/2014,018-02-0304199,N/A,11.12,ISLES OF SCILLY STEAMSHIP CO,00103,V&P Miscellaneous,Boat Transport,25002,Other Operating Income & Expenditure,,
,Council of the Isles of Scilly,03/06/2014,018-02-0304199,N/A,5.56,ISLES OF SCILLY STEAMSHIP CO,00103,Vehicle 40 - Peugeot Boxer Van WK06 YTX,Boat Transport,25002,Other Operating Income & Expenditure,,
,Council of the Isles of Scilly,03/06/2014,018-02-0304199,N/A,26.41,ISLES OF SCILLY STEAMSHIP CO,00103,OLDER PEOPLE OVER 65 - PARK HOUSE RESIDENTIAL CARE,Boat Transport,25002,Adult & Community Services,,
,Council of the Isles of Scilly,03/06/2014,018-02-0304199,N/A,5.56,ISLES OF SCILLY STEAMSHIP CO,00103,SPORTS HALL,Boat Transport,25002,Cultural Services,,
,Council of the Isles of Scilly,03/06/2014,018-02-0304199,N/A,87.55,ISLES OF SCILLY STEAMSHIP CO,00103,LIBRARY SERVICE,Boat Transport,25002,Cultural Services,,
,Council of the Isles of Scilly,03/06/2014,018-02-0304199,N/A,45.44,ISLES OF SCILLY STEAMSHIP CO,00103,OFFICE - TOWN HALL,Boat Transport,25002,Central Services,,
,Council of the Isles of Scilly,03/06/2014,018-02-0304199,N/A,28.33,ISLES OF SCILLY STEAMSHIP CO,00103,YOUTH SERVICES - General,Boat Transport,25002,Education,,
,Council of the Isles of Scilly,03/06/2014,018-02-0304199,N/A,7.83,ISLES OF SCILLY STEAMSHIP CO,00103,TOURISM,Boat Transport,25002,Cultural Services,,
,Council of the Isles of Scilly,11/06/2014,008-02-0304919,N/A,53.83,THE CONSORTIUM,00141,CARN GWAVAL HEALTH & WELLBEING CENTRE,Materials,15001,Central Services,,
,Council of the Isles of Scilly,16/06/2014,008-02-0305274,N/A,406.32,THE CONSORTIUM,00141,AIRPORT - GENERAL,Materials,15001,Other Operating Income & Expenditure,,
,Council of the Isles of Scilly,11/06/2014,008-02-0304918,N/A,59.44,THE CONSORTIUM,00141,CARN THOMAS EDUCATION BUILDING,Materials,15001,Central Services,,
,Council of the Isles of Scilly,16/06/2014,008-02-0305274,N/A,64.07,THE CONSORTIUM,00141,AIRPORT - GENERAL,General,32201,Other Operating Income & Expenditure,,
,Council of the Isles of Scilly,03/06/2014,018-02-0304200,N/A,98.00,J & P HEALTHCARE,00150,OLDER PEOPLE OVER 65 - PARK HOUSE RESIDENTIAL CARE,Other materials,30303,Adult & Community Services,,
,Council of the Isles of Scilly,03/06/2014,018-02-0304201,N/A,558.00,J & P HEALTHCARE,00150,OLDER PEOPLE OVER 65 - PARK HOUSE RESIDENTIAL CARE,Other materials,30303,Adult & Community Services,,
,Council of the Isles of Scilly,11/06/2014,008-02-0304926,N/A,35.70,DV PEACOCK,00180,ADULT & COMMUNITY LEARNING - SFA,Boat Travel,23004,Education,,
,Council of the Isles of Scilly,11/06/2014,008-02-0304927,N/A,18.00,DV PEACOCK,00180,ADULT & COMMUNITY LEARNING - SFA,Boat Travel,23004,Education,,
,Council of the Isles of Scilly,11/06/2014,008-02-0304925,N/A,459.00,DV PEACOCK,00180,CONCESSIONARY FARES,Boat Travel,23004,"Highways, Roads & Transport",,
,Council of the Isles of Scilly,11/06/2014,008-02-0304925,N/A,38.20,DV PEACOCK,00180,CONCESSIONARY FARES,Boat Travel,23004,"Highways, Roads & Transport",,
,Council of the Isles of Scilly,11/06/2014,008-02-0304921,N/A,459.23,DV PEACOCK,00180,Pre-school & Primary - Access To Activities,Boat Travel,23004,Education,,
,Council of the Isles of Scilly,16/06/2014,008-02-0305278,N/A,72.00,DV PEACOCK,00180,FAMILY SUPPORT SERVICES - OTHER INCL DIRECT PAYMENTS,Boat Travel,23004,Childrens Social Care,,
,Council of the Isles of Scilly,41801,008-02-0304927,N/A,27.00,DV PEACOCK,00180,ADULT & COMMUNITY LEARNING - SFA,Boat Travel - Contractors,23007,Education,,
,Council of the Isles of Scilly,41801,008-02-0304920,N/A,252.00,DV PEACOCK,00180,HOME TO SCHOOL TRANSPORT,Home to school transport - Secondary,26002,Education,,
,Council of the Isles of Scilly,41806,008-02-0305285,N/A,355.47,SIBLEY'S FUEL & MARINE SERVICE,00194,AIRPORT - GENERAL,Oil,11102,Other Operating Income & Expenditure,,
,Council of the Isles of Scilly,41806,008-02-0305283,N/A,13.08,SIBLEY'S FUEL & MARINE SERVICE,00194,FIRE & RESCUE OPERATIONS,Fuel,20401,Fire & rescue,,
,Council of the Isles of Scilly,41806,008-02-0305285,N/A,76.69,SIBLEY'S FUEL & MARINE SERVICE,00194,AIRPORT - GENERAL,Fuel,20401,Other Operating Income & Expenditure,,
,Council of the Isles of Scilly,41806,008-02-0305286,N/A,27.00,SIBLEY'S FUEL & MARINE SERVICE,00194,INSHORE FISHERIES & CONSERVATION AUTHORITIES,Fuel,20401,Environmental Services,,
,Council of the Isles of Scilly,41806,008-02-0305287,N/A,236.25,SIBLEY'S FUEL & MARINE SERVICE,00194,INSHORE FISHERIES & CONSERVATION AUTHORITIES,Fuel,20401,Environmental Services,,
,Council of the Isles of Scilly,41806,008-02-0305283,N/A,16.08,SIBLEY'S FUEL & MARINE SERVICE,00194,AIRPORT - GENERAL,Other,31201,Other Operating Income & Expenditure,,
,Council of the Isles of Scilly,41801,008-02-0304929,N/A,"3,060.00",CIPFA Business,00235,INTERNAL SUPPORT SERVICES - MISCELLANEOUS,Recruitment agency fees,37104,Central Services,,
,Council of the Isles of Scilly,41793,018-02-0304205,N/A,2.81,VODAFONE LTD,00239,WASTE DISPOSAL - RECYCLING,Mobile Calls and Rental,33103,Environmental Services,,
,Council of the Isles of Scilly,41793,018-02-0304205,N/A,5.62,VODAFONE LTD,00239,FIRE & RESCUE OPERATIONS,Mobile Calls and Rental,33103,Fire & rescue,,
,Council of the Isles of Scilly,41793,018-02-0304205,N/A,14.20,VODAFONE LTD,00239,DIRECT LABOUR FORCE,Mobile Calls and Rental,33103,Other Operating Income & Expenditure,,
,Council of the Isles of Scilly,41793,018-02-0304205,N/A,6.07,VODAFONE LTD,00239,IOS SEWERAGE SERVICES,Mobile Calls and Rental,33103,Other Operating Income & Expenditure,,
,Council of the Isles of Scilly,41793,018-02-0304204,N/A,83.33,VODAFONE LTD,00239,IOS WATER SERVICES,Mobile Calls and Rental,33103,Other Operating Income & Expenditure,,
,Council of the Isles of Scilly,41793,018-02-0304205,N/A,27.15,VODAFONE LTD,00239,IOS WATER SERVICES,Mobile Calls and Rental,33103,Other Operating Income & Expenditure,,
,Council of the Isles of Scilly,41793,018-02-0304205,N/A,9.37,VODAFONE LTD,00239,MOORWELL DEPOT,Mobile Calls and Rental,33103,Other Operating Income & Expenditure,,
,Council of the Isles of Scilly,41793,018-02-0304205,N/A,32.91,VODAFONE LTD,00239,ADULT SOCIAL CARE STRATEGY,Mobile Calls and Rental,33103,Adult & Community Services,,
,Council of the Isles of Scilly,41793,018-02-0304205,N/A,12.47,VODAFONE LTD,00239,OLDER PEOPLE OVER 65 - PARK HOUSE RESIDENTIAL CARE,Mobile Calls and Rental,33103,Adult & Community Services,,
,Council of the Isles of Scilly,41793,018-02-0304205,N/A,32.14,VODAFONE LTD,00239,OTHER ADULT SERVICES - OTHER ADULT SERVICES,Mobile Calls and Rental,33103,Adult & Community Services,,
,Council of the Isles of Scilly,41793,018-02-0304205,N/A,15.75,VODAFONE LTD,00239,ADULT & COMMUNITY LEARNING - SFA,Mobile Calls and Rental,33103,Education,,
,Council of the Isles of Scilly,41793,018-02-0304205,N/A,19.13,VODAFONE LTD,00239,FITNESS CENTRE,Mobile Calls and Rental,33103,Cultural Services,,
,Council of the Isles of Scilly,41793,018-02-0304205,N/A,16.70,VODAFONE LTD,00239,SPORTS HALL,Mobile Calls and Rental,33103,Cultural Services,,
,Council of the Isles of Scilly,41793,018-02-0304205,N/A,2.81,VODAFONE LTD,00239,HANDYPERSON SCHEME,Mobile Calls and Rental,33103,Housing Services,,
,Council of the Isles of Scilly,41793,018-02-0304205,N/A,23.90,VODAFONE LTD,00239,HOUSING STOCK MANAGEMENT,Mobile Calls and Rental,33103,Housing Revenue Account,,
,Council of the Isles of Scilly,41793,018-02-0304205,N/A,12.22,VODAFONE LTD,00239,AIRPORT - GENERAL,Mobile Calls and Rental,33103,Other Operating Income & Expenditure,,
,Council of the Isles of Scilly,41793,018-02-0304205,N/A,6.08,VODAFONE LTD,00239,EMERGENCY PLANNING,Mobile Calls and Rental,33103,Central Services,,
,Council of the Isles of Scilly,41793,018-02-0304205,N/A,34.31,VODAFONE LTD,00239,INTERNAL SUPPORT SERVICES - MISCELLANEOUS,Mobile Calls and Rental,33103,Central Services,,
,Council of the Isles of Scilly,41793,018-02-0304205,N/A,9.97,VODAFONE LTD,00239,INTERNAL ICT SERVICES,Mobile Calls and Rental,33103,Central Services,,
,Council of the Isles of Scilly,41793,018-02-0304205,N/A,49.29,VODAFONE LTD,00239,OFFICE - TOWN HALL,Mobile Calls and Rental,33103,Central Services,,
,Council of the Isles of Scilly,41793,018-02-0304205,N/A,30.21,VODAFONE LTD,00239,STRATEGIC MANAGEMENT OF CHILDRENS SERVICES,Mobile Calls and Rental,33103,Education,,
,Council of the Isles of Scilly,41793,018-02-0304205,N/A,3.07,VODAFONE LTD,00239,POST 16 OPPORTUNITIES,Mobile Calls and Rental,33103,Education,,
,Council of the Isles of Scilly,41793,018-02-0304205,N/A,3.75,VODAFONE LTD,00239,HOME TO SCHOOL TRANSPORT,Mobile Calls and Rental,33103,Education,,
,Council of the Isles of Scilly,41793,018-02-0304205,N/A,15.79,VODAFONE LTD,00239,Pre-school & Primary - General,Mobile Calls and Rental,33103,Education,,
,Council of the Isles of Scilly,41793,018-02-0304205,N/A,31.95,VODAFONE LTD,00239,Pre-school & Primary - Parenting Support ,Mobile Calls and Rental,33103,Education,,
,Council of the Isles of Scilly,41793,018-02-0304205,N/A,41.09,VODAFONE LTD,00239,CHILDRENS SERVICES - COMMISSIONING & SOCIAL WORK,Mobile Calls and Rental,33103,Childrens Social Care,,
,Council of the Isles of Scilly,41793,018-02-0304205,N/A,19.05,VODAFONE LTD,00239,CHILDRENS SERVICES - SHORT BREAKS,Mobile Calls and Rental,33103,Childrens Social Care,,
,Council of the Isles of Scilly,41793,018-02-0304205,N/A,2.81,VODAFONE LTD,00239,SCHOOL CROSSING PATROL,Mobile Calls and Rental,33103,"Highways, Roads & Transport",,
,Council of the Isles of Scilly,41793,018-02-0304205,N/A,36.12,VODAFONE LTD,00239,PLANNING POLICY,Mobile Calls and Rental,33103,Planning Services,,
,Council of the Isles of Scilly,41793,018-02-0304205,N/A,2.81,VODAFONE LTD,00239,ENVIRONMENTAL INITIATIVES - CLIMATE CHANGE ,Mobile Calls and Rental,33103,Planning Services,,
,Council of the Isles of Scilly,41793,018-02-0304205,N/A,15.83,VODAFONE LTD,00239,INSHORE FISHERIES & CONSERVATION AUTHORITIES,Mobile Calls and Rental,33103,Environmental Services,,
,Council of the Isles of Scilly,41806,018-02-0305239,N/A,126.97,DUCHY OF CORNWALL,00286,FIRE & RESCUE OPERATIONS,Other Transport - DLF,25003,Fire & rescue,,
,Council of the Isles of Scilly,41806,018-02-0305239,N/A,-87.00,DUCHY OF CORNWALL,00286,FIRE & RESCUE OPERATIONS,Other Transport - DLF,25003,Fire & rescue,,
,Council of the Isles of Scilly,41806,018-02-0305242,N/A,87.00,DUCHY OF CORNWALL,00286,FIRE & RESCUE OPERATIONS,Other Transport - DLF,25003,Fire & rescue,,
,Council of the Isles of Scilly,41806,018-02-0305253,N/A,20.00,MISCO COMPUTER SUPPLIES LTD,00499,INTERNAL ICT SERVICES,Courier services,33003,Central Services,,
,Council of the Isles of Scilly,41806,018-02-0305255,N/A,20.00,MISCO COMPUTER SUPPLIES LTD,00499,INTERNAL ICT SERVICES,Courier services,33003,Central Services,,
,Council of the Isles of Scilly,41806,018-02-0305262,N/A,16.08,MISCO COMPUTER SUPPLIES LTD,00499,DEVELOPMENT MANAGEMENT,Courier services,33003,Planning Services,,
,Council of the Isles of Scilly,41806,018-02-0305253,N/A,78.60,MISCO COMPUTER SUPPLIES LTD,00499,INTERNAL ICT SERVICES,Hardware Costs,33201,Central Services,,
,Council of the Isles of Scilly,41806,018-02-0305253,N/A,-14.25,MISCO COMPUTER SUPPLIES LTD,00499,INTERNAL ICT SERVICES,Hardware Costs,33201,Central Services,,
,Council of the Isles of Scilly,41806,018-02-0305255,N/A,"1,294.00",MISCO COMPUTER SUPPLIES LTD,00499,INTERNAL ICT SERVICES,Hardware Costs,33201,Central Services,,
,Council of the Isles of Scilly,41806,018-02-0305255,N/A,-492.13,MISCO COMPUTER SUPPLIES LTD,00499,INTERNAL ICT SERVICES,Hardware Costs,33201,Central Services,,
,Council of the Isles of Scilly,41806,018-02-0305257,N/A,31.18,MISCO COMPUTER SUPPLIES LTD,00499,INTERNAL ICT SERVICES,Hardware Costs,33201,Central Services,,
,Council of the Isles of Scilly,41806,018-02-0305260,N/A,93.00,MISCO COMPUTER SUPPLIES LTD,00499,INTERNAL ICT SERVICES,Hardware Costs,33201,Central Services,,
,Council of the Isles of Scilly,41806,018-02-0305260,N/A,-14.25,MISCO COMPUTER SUPPLIES LTD,00499,INTERNAL ICT SERVICES,Hardware Costs,33201,Central Services,,
,Council of the Isles of Scilly,41806,018-02-0305262,N/A,374.10,MISCO COMPUTER SUPPLIES LTD,00499,INTERNAL ICT SERVICES,Hardware Costs,33201,Central Services,,
,Council of the Isles of Scilly,41802,018-02-0305118,N/A,"2,100.00",MR T ALLSOP,00674,INSHORE FISHERIES & CONSERVATION AUTHORITIES,Professional Services,42001,Environmental Services,,
,Council of the Isles of Scilly,41801,008-02-0304950,N/A,95.00,ISLES OF SCILLY TRAVEL,00762,ADULT SOCIAL CARE STRATEGY,Air Travel,23002,Adult & Community Services,,
,Council of the Isles of Scilly,41813,018-02-0305759,N/A,105.00,ISLES OF SCILLY TRAVEL,00762,SPECIALIST HOUSING STRATEGY,Air Travel,23002,Adult & Community Services,,
,Council of the Isles of Scilly,41793,018-02-0304254,N/A,152.00,ISLES OF SCILLY TRAVEL,00762,ADULTS UNDER 65 PD/SI - RESIDENTIAL CARE,Air Travel,23002,Adult & Community Services,,
,Council of the Isles of Scilly,41793,018-02-0304244,N/A,76.00,ISLES OF SCILLY TRAVEL,00762,ADULTS UNDER 65 LD - OTHER SERVICES,Air Travel,23002,Adult & Community Services,,
,Council of the Isles of Scilly,41793,018-02-0304250,N/A,152.00,ISLES OF SCILLY TRAVEL,00762,ADULTS UNDER 65 LD - OTHER SERVICES,Air Travel,23002,Adult & Community Services,,
,Council of the Isles of Scilly,41793,018-02-0304251,N/A,76.00,ISLES OF SCILLY TRAVEL,00762,ADULTS UNDER 65 LD - OTHER SERVICES,Air Travel,23002,Adult & Community Services,,
,Council of the Isles of Scilly,41793,018-02-0304252,N/A,152.00,ISLES OF SCILLY TRAVEL,00762,ADULTS UNDER 65 LD - OTHER SERVICES,Air Travel,23002,Adult & Community Services,,
,Council of the Isles of Scilly,41793,014-02-0304281,N/A,-152.00,ISLES OF SCILLY TRAVEL,00762,ADULTS UNDER 65 LD - OTHER SERVICES,Air Travel,23002,Adult & Community Services,,
,Council of the Isles of Scilly,41793,018-02-0304284,N/A,152.00,ISLES OF SCILLY TRAVEL,00762,ADULTS UNDER 65 LD - OTHER SERVICES,Air Travel,23002,Adult & Community Services,,
,Council of the Isles of Scilly,41793,018-02-0304284,N/A,-21.50,ISLES OF SCILLY TRAVEL,00762,ADULTS UNDER 65 LD - OTHER SERVICES,Air Travel,23002,Adult & Community Services,,
,Council of the Isles of Scilly,41793,018-02-0304218,N/A,105.00,ISLES OF SCILLY TRAVEL,00762,ADULT & COMMUNITY LEARNING - SFA,Air Travel,23002,Education,,
,Council of the Isles of Scilly,41806,018-02-0305315,N/A,162.00,ISLES OF SCILLY TRAVEL,00762,ADULT & COMMUNITY LEARNING - CONVERGENCE - ESF,Air Travel,23002,Education,,
,Council of the Isles of Scilly,41806,018-02-0305317,N/A,10.00,ISLES OF SCILLY TRAVEL,00762,ADULT & COMMUNITY LEARNING - CONVERGENCE - ESF,Air Travel,23002,Education,,
,Council of the Isles of Scilly,41813,018-02-0305767,N/A,152.00,ISLES OF SCILLY TRAVEL,00762,ADULT & COMMUNITY LEARNING - CONVERGENCE - ESF,Air Travel,23002,Education,,
,Council of the Isles of Scilly,41806,018-02-0305270,N/A,95.00,ISLES OF SCILLY TRAVEL,00762,FITNESS CENTRE,Air Travel,23002,Cultural Services,,
,Council of the Isles of Scilly,41813,018-02-0305753,N/A,95.00,ISLES OF SCILLY TRAVEL,00762,FITNESS CENTRE,Air Travel,23002,Cultural Services,,
,Council of the Isles of Scilly,41793,018-02-0304219,N/A,190.00,ISLES OF SCILLY TRAVEL,00762,AIR TRAFFIC CONTROL,Air Travel,23002,Other Operating Income & Expenditure,,
,Council of the Isles of Scilly,41793,018-02-0304220,N/A,190.00,ISLES OF SCILLY TRAVEL,00762,AIR TRAFFIC CONTROL,Air Travel,23002,Other Operating Income & Expenditure,,
,Council of the Isles of Scilly,41793,018-02-0304224,N/A,152.00,ISLES OF SCILLY TRAVEL,00762,AIR TRAFFIC CONTROL,Air Travel,23002,Other Operating Income & Expenditure,,
,Council of the Isles of Scilly,41813,018-02-0305754,N/A,162.00,ISLES OF SCILLY TRAVEL,00762,DEMOCRATIC REPRESENTATION & MANAGEMENT,Air Travel,23002,Central Services,,
,Council of the Isles of Scilly,41813,018-02-0305755,N/A,105.00,ISLES OF SCILLY TRAVEL,00762,DEMOCRATIC REPRESENTATION & MANAGEMENT,Air Travel,23002,Central Services,,
,Council of the Isles of Scilly,41793,018-02-0304238,N/A,176.00,ISLES OF SCILLY TRAVEL,00762,CORPORATE MANAGEMENT - OTHER,Air Travel,23002,Central Services,,
,Council of the Isles of Scilly,41793,018-02-0304239,N/A,-190.00,ISLES OF SCILLY TRAVEL,00762,CORPORATE MANAGEMENT - OTHER,Air Travel,23002,Central Services,,
,Council of the Isles of Scilly,41793,018-02-0304240,N/A,171.00,ISLES OF SCILLY TRAVEL,00762,CORPORATE MANAGEMENT - OTHER,Air Travel,23002,Central Services,,
,Council of the Isles of Scilly,41793,018-02-0304240,N/A,-170.00,ISLES OF SCILLY TRAVEL,00762,CORPORATE MANAGEMENT - OTHER,Air Travel,23002,Central Services,,
,Council of the Isles of Scilly,41813,018-02-0305772,N/A,542.00,ISLES OF SCILLY TRAVEL,00762,INTERNAL SUPPORT SERVICES - MISCELLANEOUS,Air Travel,23002,Central Services,,
,Council of the Isles of Scilly,41813,018-02-0305764,N/A,190.00,ISLES OF SCILLY TRAVEL,00762,MUNDESLEY R&M REFURBISHMENT,Air Travel,23002,Education,,
,Council of the Isles of Scilly,41793,018-02-0304241,N/A,105.00,ISLES OF SCILLY TRAVEL,00762,SPECIAL EDUCATIONAL SUPPORT,Air Travel,23002,Education,,
,Council of the Isles of Scilly,41793,018-02-0304242,N/A,105.00,ISLES OF SCILLY TRAVEL,00762,SPECIAL EDUCATIONAL SUPPORT,Air Travel,23002,Education,,
,Council of the Isles of Scilly,41801,008-02-0304949,N/A,152.00,ISLES OF SCILLY TRAVEL,00762,SPECIAL EDUCATIONAL SUPPORT,Air Travel,23002,Education,,
,Council of the Isles of Scilly,41806,018-02-0305318,N/A,291.00,ISLES OF SCILLY TRAVEL,00762,YOUTH SERVICES - Support to Providers,Air Travel,23002,Education,,
,Council of the Isles of Scilly,41806,018-02-0305318,N/A,-99.00,ISLES OF SCILLY TRAVEL,00762,YOUTH SERVICES - Support to Providers,Air Travel,23002,Education,,
,Council of the Isles of Scilly,41806,018-02-0305319,N/A,291.00,ISLES OF SCILLY TRAVEL,00762,YOUTH SERVICES - Support to Providers,Air Travel,23002,Education,,
,Council of the Isles of Scilly,41806,018-02-0305319,N/A,-99.00,ISLES OF SCILLY TRAVEL,00762,YOUTH SERVICES - Support to Providers,Air Travel,23002,Education,,
,Council of the Isles of Scilly,41806,018-02-0305320,N/A,81.00,ISLES OF SCILLY TRAVEL,00762,YOUTH SERVICES - Support to Providers,Air Travel,23002,Education,,
,Council of the Isles of Scilly,41806,018-02-0305320,N/A,-29.00,ISLES OF SCILLY TRAVEL,00762,YOUTH SERVICES - Support to Providers,Air Travel,23002,Education,,
,Council of the Isles of Scilly,41806,018-02-0305322,N/A,150.50,ISLES OF SCILLY TRAVEL,00762,YOUTH SERVICES - Support to Providers,Air Travel,23002,Education,,
,Council of the Isles of Scilly,41806,018-02-0305322,N/A,-54.00,ISLES OF SCILLY TRAVEL,00762,YOUTH SERVICES - Support to Providers,Air Travel,23002,Education,,
,Council of the Isles of Scilly,41806,018-02-0305323,N/A,291.00,ISLES OF SCILLY TRAVEL,00762,YOUTH SERVICES - Support to Providers,Air Travel,23002,Education,,
,Council of the Isles of Scilly,41806,018-02-0305323,N/A,-99.00,ISLES OF SCILLY TRAVEL,00762,YOUTH SERVICES - Support to Providers,Air Travel,23002,Education,,
,Council of the Isles of Scilly,41806,018-02-0305324,N/A,70.00,ISLES OF SCILLY TRAVEL,00762,YOUTH SERVICES - Support to Providers,Air Travel,23002,Education,,
,Council of the Isles of Scilly,41806,018-02-0305324,N/A,-51.00,ISLES OF SCILLY TRAVEL,00762,YOUTH SERVICES - Support to Providers,Air Travel,23002,Education,,
,Council of the Isles of Scilly,41801,008-02-0304957,N/A,522.00,ISLES OF SCILLY TRAVEL,00762,YOUTH SERVICES - Youth Hub,Air Travel,23002,Education,,
,Council of the Isles of Scilly,41806,018-02-0305309,N/A,152.00,ISLES OF SCILLY TRAVEL,00762,Pre-school & Primary - Support to Providers,Air Travel,23002,Education,,
,Council of the Isles of Scilly,41801,008-02-0304948,N/A,225.50,ISLES OF SCILLY TRAVEL,00762,CHILDRENS SERVICES - COMMISSIONING & SOCIAL WORK,Air Travel,23002,Childrens Social Care,,
,Council of the Isles of Scilly,41793,018-02-0304234,N/A,190.00,ISLES OF SCILLY TRAVEL,00762,FAMILY SUPPORT SERVICES - OTHER INCL DIRECT PAYMENTS,Air Travel,23002,Childrens Social Care,,
,Council of the Isles of Scilly,41793,018-02-0304235,N/A,95.00,ISLES OF SCILLY TRAVEL,00762,FAMILY SUPPORT SERVICES - OTHER INCL DIRECT PAYMENTS,Air Travel,23002,Childrens Social Care,,
,Council of the Isles of Scilly,41793,018-02-0304236,N/A,95.00,ISLES OF SCILLY TRAVEL,00762,FAMILY SUPPORT SERVICES - OTHER INCL DIRECT PAYMENTS,Air Travel,23002,Childrens Social Care,,
,Council of the Isles of Scilly,41793,018-02-0304237,N/A,10.00,ISLES OF SCILLY TRAVEL,00762,FAMILY SUPPORT SERVICES - OTHER INCL DIRECT PAYMENTS,Air Travel,23002,Childrens Social Care,,
,Council of the Isles of Scilly,41806,018-02-0305277,N/A,380.00,ISLES OF SCILLY TRAVEL,00762,Capital,Air Travel,23002,Capital,,
,Council of the Isles of Scilly,41813,018-02-0305760,N/A,105.00,ISLES OF SCILLY TRAVEL,00762,Capital,Air Travel,23002,Capital,,
,Council of the Isles of Scilly,41801,008-02-0304941,N/A,19.00,ISLES OF SCILLY TRAVEL,00762,Capital,Air Travel,23002,Capital,,
,Council of the Isles of Scilly,41806,018-02-0305273,N/A,105.00,ISLES OF SCILLY TRAVEL,00762,Capital,Air Travel,23002,Capital,,
,Council of the Isles of Scilly,41806,018-02-0305273,N/A,-52.50,ISLES OF SCILLY TRAVEL,00762,Capital,Air Travel,23002,Capital,,
,Council of the Isles of Scilly,41806,018-02-0305275,N/A,190.00,ISLES OF SCILLY TRAVEL,00762,Capital,Air Travel,23002,Capital,,
,Council of the Isles of Scilly,41806,018-02-0305282,N/A,89.00,ISLES OF SCILLY TRAVEL,00762,DEMOCRATIC REPRESENTATION & MANAGEMENT,Boat Travel,23004,Central Services,,
,Council of the Isles of Scilly,41813,018-02-0305767,N/A,10.00,ISLES OF SCILLY TRAVEL,00762,ADULT & COMMUNITY LEARNING - CONVERGENCE - ESF,Other,23005,Education,,
,Council of the Isles of Scilly,41793,018-02-0304239,N/A,211.50,ISLES OF SCILLY TRAVEL,00762,DEMOCRATIC REPRESENTATION & MANAGEMENT,Civic Expenses,34004,Central Services,,
,Council of the Isles of Scilly,41801,018-02-0304937,N/A,423.00,ST MARTIN'S BOAT SERVICES,00906,CONCESSIONARY FARES,Boat Travel,23004,"Highways, Roads & Transport",,
,Council of the Isles of Scilly,41793,018-02-0304261,N/A,672.00,ST MARTIN'S BOAT SERVICES,00906,SPECIAL EDUCATIONAL SUPPORT,Boat Travel,23004,Education,,
,Council of the Isles of Scilly,41793,018-02-0304256,N/A,516.00,ST MARTIN'S BOAT SERVICES,00906,Pre-school & Primary - Access To Activities,Boat Travel,23004,Education,,
,Council of the Isles of Scilly,41793,018-02-0304257,N/A,426.00,ST MARTIN'S BOAT SERVICES,00906,Pre-school & Primary - Access To Activities,Boat Travel,23004,Education,,
,Council of the Isles of Scilly,41793,018-02-0304258,N/A,903.00,ST MARTIN'S BOAT SERVICES,00906,Pre-school & Primary - Access To Activities,Boat Travel,23004,Education,,
,Council of the Isles of Scilly,41813,018-02-0305780,N/A,801.00,ST MARTIN'S BOAT SERVICES,00906,Pre-school & Primary - Access To Activities,Boat Travel,23004,Education,,
,Council of the Isles of Scilly,41813,018-02-0305781,N/A,346.00,ST MARTIN'S BOAT SERVICES,00906,Pre-school & Primary - Access To Activities,Boat Travel,23004,Education,,
,Council of the Isles of Scilly,41793,018-02-0304260,N/A,42.00,ST MARTIN'S BOAT SERVICES,00906,FAMILY SUPPORT SERVICES - OTHER INCL DIRECT PAYMENTS,Boat Travel,23004,Childrens Social Care,,
,Council of the Isles of Scilly,41793,018-02-0304259,N/A,192.00,ST MARTIN'S BOAT SERVICES,00906,HOME TO SCHOOL TRANSPORT,Home to school transport - Secondary,26002,Education,,
,Council of the Isles of Scilly,41801,018-02-0304951,N/A,"4,769.25",CD ELECTRICAL SERVICES,01007,Capital,External Contractors,10101,Capital,,
,Council of the Isles of Scilly,41801,011-02-0305002,N/A,"-4,769.25",CD ELECTRICAL SERVICES,01007,Capital,External Contractors,10101,Capital,,
,Council of the Isles of Scilly,41801,018-02-0305003,N/A,"4,769.25",CD ELECTRICAL SERVICES,01007,Capital,External Contractors,10101,Capital,,
,Council of the Isles of Scilly,41806,018-02-0305291,N/A,285.00,CD ELECTRICAL SERVICES,01007,SWIMMING POOL,Professional Services,42001,Cultural Services,,
,Council of the Isles of Scilly,41801,018-02-0304944,N/A,"3,642.00",CD ELECTRICAL SERVICES,01007,IOS SEWERAGE SERVICES,Other,42003,Other Operating Income & Expenditure,,
,Council of the Isles of Scilly,41801,018-02-0304942,N/A,587.76,CD ELECTRICAL SERVICES,01007,IOS WATER SERVICES,Other,42003,Other Operating Income & Expenditure,,
,Council of the Isles of Scilly,41806,018-02-0305293,N/A,153.64,ISLES OF SCILLY STEAMSHIP CO,01052,FIRE & RESCUE OPERATIONS,Boat Transport,25002,Fire & rescue,,
,Council of the Isles of Scilly,41806,018-02-0305293,N/A,59.39,ISLES OF SCILLY STEAMSHIP CO,01052,AIRPORT - GENERAL,Boat Transport,25002,Other Operating Income & Expenditure,,
,Council of the Isles of Scilly,41813,018-02-0305784,N/A,500.00,ISLES OF SCILLY STEAMSHIP CO,01052,AIR TRAFFIC CONTROL,Maintenance,30102,Other Operating Income & Expenditure,,
,Council of the Isles of Scilly,41806,018-02-0305294,N/A,125.00,PFS (HELSTON) LTD,01117,AIRPORT - HOUSING,External Contractors,10101,Other Operating Income & Expenditure,,
,Council of the Isles of Scilly,41806,018-02-0305296,N/A,658.82,PFS (HELSTON) LTD,01117,FIRE & RESCUE OPERATIONS,Transport R&M,20301,Fire & rescue,,
,Council of the Isles of Scilly,41801,018-02-0304955,N/A,"3,810.00",PFS (HELSTON) LTD,01117,IOS SEWERAGE SERVICES,General,30101,Other Operating Income & Expenditure,,
,Council of the Isles of Scilly,41801,018-02-0304954,N/A,"2,347.37",PFS (HELSTON) LTD,01117,IOS WATER SERVICES,General,30101,Other Operating Income & Expenditure,,
,Council of the Isles of Scilly,41801,018-02-0304956,N/A,839.85,PFS (HELSTON) LTD,01117,IOS WATER SERVICES,General,30101,Other Operating Income & Expenditure,,
,Council of the Isles of Scilly,41806,018-02-0305295,N/A,250.12,PFS (HELSTON) LTD,01117,FIRE & RESCUE OPERATIONS,Maintenance,30102,Fire & rescue,,
,Council of the Isles of Scilly,41801,018-02-0304958,N/A,"4,930.67",PFS (HELSTON) LTD,01117,IOS SEWERAGE SERVICES,Maintenance,30102,Other Operating Income & Expenditure,,
,Council of the Isles of Scilly,41799,018-02-0304829,N/A,722.00,REDACTED PERSONAL INFORMATION,REDACTED PERSONAL INFORMATION,POST 16 OPPORTUNITIES,Accommodation Grants,50104,Education,,
,Council of the Isles of Scilly,41820,018-02-0305994,N/A,25.00,REDACTED PERSONAL INFORMATION,REDACTED PERSONAL INFORMATION,POST 16 OPPORTUNITIES,Travel Grants,50106,Education,,
,Council of the Isles of Scilly,41799,018-02-0304829,N/A,73.50,REDACTED PERSONAL INFORMATION,REDACTED PERSONAL INFORMATION,POST 16 OPPORTUNITIES,Travel Grants,50106,Education,,
,Council of the Isles of Scilly,41801,018-02-0304961,N/A,544.00,MR C POTTERTON,01570,REFUSE COLLECTION - BRYHER,Other,42003,Environmental Services,,
,Council of the Isles of Scilly,41801,018-02-0304962,N/A,"2,210.00",MR C POTTERTON,01570,IOS WATER SERVICES - BRYHER,Other,42003,Other Operating Income & Expenditure,,
,Council of the Isles of Scilly,41820,018-02-0305995,N/A,722.00,REDACTED PERSONAL INFORMATION,REDACTED PERSONAL INFORMATION,POST 16 OPPORTUNITIES,Accommodation Grants,50104,Education,,
,Council of the Isles of Scilly,41801,018-02-0304965,N/A,85.00,MR R MCCARTHY,02078,DEMOCRATIC REPRESENTATION & MANAGEMENT,Air Travel,23002,Central Services,,
,Council of the Isles of Scilly,41801,018-02-0304965,N/A,85.00,MR R MCCARTHY,02078,DEMOCRATIC REPRESENTATION & MANAGEMENT,Air Travel,23002,Central Services,,
,Council of the Isles of Scilly,41814,018-02-0305815,N/A,68.00,MR R MCCARTHY,02078,DEMOCRATIC REPRESENTATION & MANAGEMENT,Air Travel,23002,Central Services,,
,Council of the Isles of Scilly,41814,018-02-0305815,N/A,117.00,MR R MCCARTHY,02078,DEMOCRATIC REPRESENTATION & MANAGEMENT,Air Travel,23002,Central Services,,
,Council of the Isles of Scilly,41814,018-02-0305815,N/A,137.22,MR R MCCARTHY,02078,DEMOCRATIC REPRESENTATION & MANAGEMENT,Other,23005,Central Services,,
,Council of the Isles of Scilly,41814,018-02-0305815,N/A,58.05,MR R MCCARTHY,02078,DEMOCRATIC REPRESENTATION & MANAGEMENT,Other,23005,Central Services,,
,Council of the Isles of Scilly,41814,018-02-0305815,N/A,103.75,MR R MCCARTHY,02078,DEMOCRATIC REPRESENTATION & MANAGEMENT,Subsistence,34002,Central Services,,
,Council of the Isles of Scilly,41820,018-02-0305996,N/A,722.00,REDACTED PERSONAL INFORMATION,REDACTED PERSONAL INFORMATION,POST 16 OPPORTUNITIES,Accommodation Grants,50104,Education,,
,Council of the Isles of Scilly,41820,018-02-0305996,N/A,722.00,REDACTED PERSONAL INFORMATION,REDACTED PERSONAL INFORMATION,POST 16 OPPORTUNITIES,Accommodation Grants,50104,Education,,
,Council of the Isles of Scilly,41820,018-02-0305996,N/A,722.00,REDACTED PERSONAL INFORMATION,REDACTED PERSONAL INFORMATION,POST 16 OPPORTUNITIES,Accommodation Grants,50104,Education,,
,Council of the Isles of Scilly,41820,018-02-0305996,N/A,722.00,REDACTED PERSONAL INFORMATION,REDACTED PERSONAL INFORMATION,POST 16 OPPORTUNITIES,Accommodation Grants,50104,Education,,
,Council of the Isles of Scilly,41820,018-02-0305996,N/A,79.50,REDACTED PERSONAL INFORMATION,REDACTED PERSONAL INFORMATION,POST 16 OPPORTUNITIES,Travel Grants,50106,Education,,
,Council of the Isles of Scilly,41820,018-02-0305996,N/A,100.00,REDACTED PERSONAL INFORMATION,REDACTED PERSONAL INFORMATION,POST 16 OPPORTUNITIES,Travel Grants,50106,Education,,
,Council of the Isles of Scilly,41820,018-02-0305996,N/A,100.00,REDACTED PERSONAL INFORMATION,REDACTED PERSONAL INFORMATION,POST 16 OPPORTUNITIES,Travel Grants,50106,Education,,
,Council of the Isles of Scilly,41820,018-02-0305996,N/A,100.00,REDACTED PERSONAL INFORMATION,REDACTED PERSONAL INFORMATION,POST 16 OPPORTUNITIES,Travel Grants,50106,Education,,
,Council of the Isles of Scilly,41820,018-02-0305996,N/A,21.00,REDACTED PERSONAL INFORMATION,REDACTED PERSONAL INFORMATION,POST 16 OPPORTUNITIES,Travel Grants,50106,Education,,
,Council of the Isles of Scilly,41793,018-02-0304273,N/A,880.00,TRURO & PENWITH COLLEGE,02239,ADULT & COMMUNITY LEARNING - SFA,Other,37106,Education,,
,Council of the Isles of Scilly,41801,018-02-0304976,N/A,"2,095.00",BLEND-I-PACK LTD,02650,WASTE DISPOSAL - INCINERATOR,Other,11103,Environmental Services,,
,Council of the Isles of Scilly,41792,018-02-0304110,N/A,590.00,REDACTED PERSONAL INFORMATION,REDACTED PERSONAL INFORMATION,POST 16 OPPORTUNITIES,Accommodation Grants,50104,Education,,
,Council of the Isles of Scilly,41799,018-02-0304831,N/A,81.50,REDACTED PERSONAL INFORMATION,REDACTED PERSONAL INFORMATION,POST 16 OPPORTUNITIES,Travel Grants,50106,Education,,
,Council of the Isles of Scilly,41799,018-02-0304831,N/A,31.85,REDACTED PERSONAL INFORMATION,REDACTED PERSONAL INFORMATION,POST 16 OPPORTUNITIES,Travel Grants,50106,Education,,
,Council of the Isles of Scilly,41801,018-02-0304978,N/A,"7,078.99",WRIGHT CONSTRUCTION,02992,PLANNED R&M,External Contractors,10101,Housing Revenue Account,,
,Council of the Isles of Scilly,41801,018-02-0304979,N/A,"4,580.00",WRIGHT CONSTRUCTION,02992,PLANNED R&M,External Contractors,10101,Housing Revenue Account,,
,Council of the Isles of Scilly,41820,018-02-0305999,N/A,545.00,REDACTED PERSONAL INFORMATION,REDACTED PERSONAL INFORMATION,POST 16 OPPORTUNITIES,Accommodation Grants,50104,Education,,
,Council of the Isles of Scilly,41820,018-02-0305999,N/A,592.00,REDACTED PERSONAL INFORMATION,REDACTED PERSONAL INFORMATION,POST 16 OPPORTUNITIES,Accommodation Grants,50104,Education,,
,Council of the Isles of Scilly,41820,018-02-0305998,N/A,608.00,REDACTED PERSONAL INFORMATION,REDACTED PERSONAL INFORMATION,POST 16 OPPORTUNITIES,Accommodation Grants,50104,Education,,
,Council of the Isles of Scilly,41820,018-02-0305999,N/A,100.00,REDACTED PERSONAL INFORMATION,REDACTED PERSONAL INFORMATION,POST 16 OPPORTUNITIES,Travel Grants,50106,Education,,
,Council of the Isles of Scilly,41820,018-02-0305999,N/A,81.50,REDACTED PERSONAL INFORMATION,REDACTED PERSONAL INFORMATION,POST 16 OPPORTUNITIES,Travel Grants,50106,Education,,
,Council of the Isles of Scilly,41820,018-02-0305999,N/A,25.00,REDACTED PERSONAL INFORMATION,REDACTED PERSONAL INFORMATION,POST 16 OPPORTUNITIES,Travel Grants,50106,Education,,
,Council of the Isles of Scilly,41820,018-02-0305999,N/A,25.00,REDACTED PERSONAL INFORMATION,REDACTED PERSONAL INFORMATION,POST 16 OPPORTUNITIES,Travel Grants,50106,Education,,
,Council of the Isles of Scilly,41820,018-02-0305998,N/A,12.50,REDACTED PERSONAL INFORMATION,REDACTED PERSONAL INFORMATION,POST 16 OPPORTUNITIES,Travel Grants,50106,Education,,
,Council of the Isles of Scilly,41806,018-02-0305306,N/A,870.00,C WRIGHT,03103,RESPONSIVE R&M,External Contractors,10101,Housing Revenue Account,,
,Council of the Isles of Scilly,41799,018-02-0304832,N/A,722.00,REDACTED PERSONAL INFORMATION,REDACTED PERSONAL INFORMATION,POST 16 OPPORTUNITIES,Accommodation Grants,50104,Education,,
,Council of the Isles of Scilly,41801,018-02-0304983,N/A,115.77,CANON (UK) LIMITED,03416,DEMOCRATIC REPRESENTATION & MANAGEMENT,Photocopy,32002,Central Services,,
,Council of the Isles of Scilly,41801,018-02-0304984,N/A,982.33,CANON (UK) LIMITED,03416,DEMOCRATIC REPRESENTATION & MANAGEMENT,Photocopy,32002,Central Services,,
,Council of the Isles of Scilly,41801,018-02-0304985,N/A,8.31,CANON (UK) LIMITED,03416,DEMOCRATIC REPRESENTATION & MANAGEMENT,Photocopy,32002,Central Services,,
,Council of the Isles of Scilly,41801,018-02-0304985,N/A,47.76,CANON (UK) LIMITED,03416,DEMOCRATIC REPRESENTATION & MANAGEMENT,Photocopy,32002,Central Services,,
,Council of the Isles of Scilly,41801,018-02-0304986,N/A,335.68,CANON (UK) LIMITED,03416,DEMOCRATIC REPRESENTATION & MANAGEMENT,Photocopy,32002,Central Services,,
,Council of the Isles of Scilly,41793,018-02-0304279,N/A,203.60,MRS H V GLENN,1188,Pre-school & Primary - 2 year olds,Other,37106,Education,,
,Council of the Isles of Scilly,41813,018-02-0305794,N/A,254.50,MRS H V GLENN,1188,Pre-school & Primary - 2 year olds,Other,37106,Education,,
,Council of the Isles of Scilly,41806,018-02-0305308,N/A,96.00,MRS H V GLENN,1188,CHILDRENS SERVICES - SHORT BREAKS,Day Care,42006,Childrens Social Care,,
